Workbook

Sheet Flessione rettangolare
K6: Vers. 1.0 Gennaio 2016
B8: Cliente: | C8: Ing. Mario Rossi | E8: Cantiere: | F8: Via Mario Rossi, 4 - 80100 Napoli | I8: Rif. Strutt.: | J8: 58-T316
B10: Dati di Input Sezione
B11: Altezza ( H ) | D11: 1000 | E11: mm
B12: Base ( B ) | D12: 400 | E12: mm
B13: Area di acciaio in trazione As | D13: 3000 | E13: mm2
B14: Area di acciaio in compressione A's | D14: 100 | E14: mm2
B15: Copriferro ( d1=d2 ) | D15: 20 | E15: mm
B16: Altezza utile ( d ) | D16: =D11-D15 -> 980 | E16: mm
B17: Area di lamina Af | D17: =D45*D38*D44 -> 280 | E17: mm2
B20: Materiali
C21: Resistenze | E21: Moduli elastici
C22: Medie | D22: Calcolo
B23: Calcestruzzo fcm [MPa] | C23: 30 | D23: =+C23/C26 -> 25 | E23: =22000*(C23/10)^0.3 -> 30588.56175 | F23: fck | G23: =C23-8 -> 22
F24: fctm | G24: =0.3*(G23)^(2/3) -> 2.355427323
B25: Acciaio fym [MPa] | C25: 391 | D25: =+C25/C26 -> 325.8333333 | E25: 210000 | F25: esy | G25: =D25/E25 -> 0.001551587302
B26: Fattore di confidenza FC | C26: =+LOOKUP(Nascosto!AB6,Nascosto!Z6:Z8,Nascosto!AA6:AA8) -> 1.2
B29: Momento iniziale agente in sezione prima dell'applicazione delle fibre M0 [kNm] | D29: 0
B31: Materiale | D31: Tipo di fibra | E31: Esposizione
B32: 11 | D32: =LOOKUP(B32,Nascosto!R23:R38,Nascosto!AA23:AA38) -> Carbonio | E32: 1
B34: CARATTERISTICHE FRP
B35: s caratteristica di rottura | D35: =LOOKUP($B$32,Nascosto!R23:R38,Nascosto!S23:S38) -> 3100
B36: e caratteristica di rottura, efk | D36: =LOOKUP($B$32,Nascosto!R23:R47,Nascosto!V23:$V47) -> 0.01823529412
B37: Modulo elastico | D37: =LOOKUP($B$32,Nascosto!R23:R38,Nascosto!T23:T38) -> 170000
B38: Spessore equivalente tessuto secco ( tf ) | D38: =LOOKUP($B$32,Nascosto!R23:R38,Nascosto!U23:U38) -> 1.4
B39: Coefficiente di sicurezza per distacco FRP ( gf,d ) | D39: 1.2
B40: Coefficiente parziale del materiale ( gf ) | D40: 1.1
B41: Fattore di conversione ambientale (ha) | D41: =LOOKUP(E32,Nascosto!AD18:AD20,Nascosto!AG18:AG20) -> 0.85
B42: s calcolo, ff,d | D42: =D35/D39*D41 -> 2195.833333
B44: Larghezza rinforzo ( bf ) | D44: 200
B45: N° strati rinforzo ( n ) | D45: 1
B46: Coefficiente per condizione di carico ( kq ) | D46: Carico concentrato
B48: kb | D48: =IF(((2-D50)/(1+D50))^0.5>1,((2-D50)/(1+D50))^0.5,1) -> 1
B49: kG | D49: =LOOKUP(B32,Nascosto!R23:R40,Nascosto!AB23:AB40) -> 0.023
B50: bf / b | D50: =+IF(D44/D12>=0.25,D44/D12,0.25) -> 0.5
B51: ffdd,2 Resist. di prog al distacco FRP (mod 2) | D51: =IF(D46=Nascosto!AA11,+Nascosto!AC11/D39*SQRT(D37*2*D48*0.1/(D45*D38)/C26*SQRT(C23*G24)),Nascosto!AC12/D39*SQRT(D37*2*D48*0.1/(D45*D38)/C26*SQRT(C23*G24))) -> 343.7172373
B52: ef,dd Deformazione max di distacco FRP | D52: =D51/D37 -> 0.002021866102
B53: e0 lembo teso CLS all'applicazione dell'FRP | D53: =+G70 -> 0
B54: esy - e0 | D54: =+G25-G70 -> 0.001551587302 | E54: =+IF(D52>=D54,"","Equazione4.7") -> 
B55: Gfd Energia specifica di frattura | D55: =+D48*D49*SQRT(C23*G24)/C26 -> 0.1611172615
B56: fbd Resist. di prog. adesione FRP-CLS | D56: =2*D55/0.25 -> 1.288938092
B57: led Lunghezza ottimale di ancoraggio | D57: =+MAX(((SQRT((PI()^2*D37*D45*D38*D55)/2))/1.25/D56),200) -> 269.9928838
B58: ffdd Resist. di prog. al distacco FRP (mod 1) | D58: =+SQRT(2*D37*D55/(D45*D38))/D39 -> 164.8409962
B59: e calcolo, efd | D59: =+MAX(MIN(D41*D36/D40,D52),D54) -> 0.002021866102
D61: Calcolo della deformazione iniziale eo
B62: Coefficiente di omogeneizzazione acciaio-cls | F62: 15 | H62: ipotesi 1: asse neutro taglia soletta | I62: yc [mm] | J62: Premere CTRL+ b per trovare l'asse neutro in ipotesi 1 | K62: Inerzia [mm4]
B63: Posizione dell'asse neutro della sezione in C.A. (equazione Sn=0) | H63: =D12*I63*I63*0.5+F62*D14*(I63-D15)-F62*D13*(D16-I63) -> 0 | I63: 367.6550139 | K63: =D12/3*I63^3+F62*D14*(I63-D15)^2+F62*D13*(D16-I63)^2 -> 2.368091722e+10
H65: asse neutro effettivo
H66: =I63 -> 367.6550139 | I66: mm
B68: Momento di inerzia della sezione in C.A. | F68: =K63 -> 2.368091722e+10 | G68: mm4
B69: Deformazione nel calcestruzzo compresso: eco | G69: =D29*1000000/(E23*F68)*H66 -> 0
B70: Deformazione della fibra inferiore della sezione in c.a.: eo | G70: =G69*(D11-H66)/H66 -> 0
B72: Posto: | C72: yc = profondità dell'asse neutro
C73: yel = la profondità dell'asse neutro in corrispondenza del cls allo 0,35% e dell'acciaio al limite elastico
D74: yel = | E74: =0.0035/(0.0035+G25)*D16 -> 678.9945012 | F74: cm
C75: yc,bilanc = | D75: la profondità dell'asse neutro per rottura bilanciata | I75: xbilanc=0.0035/(0.0035+efd,u+eo)
D76: yc,bilanc = | E76: =+J76*D11 -> 633.8436926 | F76: cm | I76: xbilanc = yc,bilanc / H = | J76: =0.0035/(0.0035+D59+G70) -> 0.6338436926
B78: Regioni di Rottura
B79: Regione 1 | C79: yc < yc,bilan | D79: deformazione cls | F79: < 0.0035
D80: deformazione lamina = | G80: =+D59 -> 0.002021866102
B81: Regione 2 | C81: yc > yc,bilan | D81: deformazione cls = | F81: =0.0035 -> 0.0035
C82: yc < yc,el | D82: deformazione acciaio compresa tra es,el e 0.01
B83: Regione 3 | C83: yc > yc,el | D83: deformazione cls = | F83: =0.0035 -> 0.0035
C84: yc < d | D84: acciaio elastico
B87: Output: calcolo dell'asse neutro a rottura e del momento ultimo (yc, Mu)
B88: E' una procedura iterativa in cui si ipotizza un valore per yc e si verifica che corrisponda Nu=0 (rottura in flessione semplice)
B91: yc | C91: regione | D91: y | E91: l | F91: s's | G91: ss | H91: sf | I91: Premere CTRL+q | J91: eq. Traslazione | K91: MRd
B92: mm | D92: ad. | E92: ad. | F92: MPa | G92: MPa | H92: MPa | K92: kN m
B93: =B103 -> 213.5048668 | C93: =C103 -> 1 | D93: 0.8 | E93: 0.416 | F93: =IF(D14=0,0,+F103) -> 104.4642134 | G93: =IF(D13=0,0,G103) -> 325.8333333 | H93: =H103 -> 343.7172373 | J93: =J103 -> 644744.5292 | K93: =K103 -> 1534.126893
B95: Sezione non Rinforzata | J95: ec | K95: =K105 -> 0.0005488632218
B96: yc | C96: s's | D96: ss | E96: MRd | J96: e's | K96: =K106 -> 0.0004974486354
B97: mm | C97: MPa | D97: MPa | E97: kN m | J97: es | K97: =K107 -> 0.001970451515
B98: =' Sezione in C.A.'!A41 -> 118.1145833 | C98: =' Sezione in C.A.'!E41 -> 325.8333333 | D98: =' Sezione in C.A.'!F41 -> 325.8333333 | E98: =' Sezione in C.A.'!J41 -> 910.869223 | J98: efrp | K98: =K108 -> 0.002021866102
B101: yc | C101: regione | D101: y | E101: l | F101: s's | G101: ss | H101: sf | J101: eq. Traslazione | K101: Mu
B102: [mm] | D102: ad. | E102: ad. | F102: MPa | G102: MPa | H102: MPa | K102: [kN m]
B103: 213.5048668 | C103: =IF($B$103<E76,1,IF($B$103<$E$74,2,3)) -> 1 | D103: 0.8 | E103: 0.416 | F103: =IF(C103=1,IF($D$59/($D$11-$B$103)*($B$103-$D$15)>$G$25,$D$25,$E$25*$D$59/($D$11-$B$103)*($B$103-$D$15)),IF(OR($C$103=2,$C$103=3),IF(0.0035/$B$103*($B$103-$D$15)>$G$25,$D$25,$E$25*0.0035/$B$103*($B$103-$D$15)))) -> 104.4642134 | G103: =IF(OR($C$103=1,$C$103=2),$D$25,$E$25*(0.0035/$B$103*($D$16-$B$103))) -> 325.8333333 | H103: =IF($C$103=1,$D$59*$D$37,$D$37*(0.0035/$B$103*($D$11-$B$103)-$G$70)) -> 343.7172373 | J103: =$D$103*$D$12*$B$103*$D$23+$D$14*$F$103-$D$13*$G$103-$D$17*$H$103 -> 644744.5292 | K103: =($D$103*$D$12*$B$103*$D$23*($D$16-$E$103*$B$103)+$D$14*$F$103*($D$16-$D$15)+$D$17*$H$103*$D$15)/1000000 -> 1534.126893
B104: x=yc/H | I104: zona 1 | J104: zona 2
B105: =B103/$D$11 -> 0.2135048668 | H105: eps cls | I105: =+I108/(D11-B103)*(B103)+G69 -> 0.0005488632218 | J105: 0.0035 | K105: =+IF(AND($I$108=$D$59,$I$105<0.0035)=TRUE,I105,J105) -> 0.0005488632218
H106: eps acciaio comp | I106: =+I108/(D11-B103)*(B103-D15)+G69/(H66)*(H66-D15) -> 0.0004974486354 | J106: =+J105/B103*(B103-D15) -> 0.003172138621 | K106: =+IF(AND($I$108=$D$59,$I$105<0.0035)=TRUE,I106,J106) -> 0.0004974486354
H107: eps acciaio teso | I107: =+I108/(D11-B103)*(D16-B103)+G70/(D11-H66)*(D16-H66) -> 0.001970451515 | J107: =+J105/B103*(D16-B103) -> 0.01256520756 | K107: =+IF(AND($I$108=$D$59,$I$105<0.0035)=TRUE,I107,J107) -> 0.001970451515
H108: eps frp | I108: =+D59 -> 0.002021866102 | J108: =+J105/B103*(D11-B103)-G70 -> 0.01289306894 | K108: =+IF(AND($I$108=$D$59,$I$105<0.0035)=TRUE,I108,J108) -> 0.002021866102
S132: 1 | T132: 0 | U132: =+D11 -> 1000
S133: 2 | T133: =+D12 -> 400 | U133: =+D11 -> 1000
S134: 3 | T134: =T133 -> 400 | U134: 0
S135: 4 | T135: 0 | U135: 0
S136: 5 | T136: 0 | U136: =U132 -> 1000
S143: As' | T143: =+D12/3 -> 133.3333333 | U143: =+D11-D15 -> 980
T144: =+D12/3*2 -> 266.6666667 | U144: =+U143 -> 980
S145: As | T145: =D12/3 -> 133.3333333 | U145: =+D15 -> 20
T146: =D12/3*2 -> 266.6666667 | U146: =+U145 -> 20
S149: Af | T149: =T134/2-D44/2 -> 100 | U149: 0
T150: =T134/2+D44/2 -> 300 | U150: 0

Sheet Nascosto (hidden)
A1: valori dei coeff. Adimens.
I3: cls | K3: E | L3: acciaio
G4: 15 | H4: 1 | I4: =G4*0.85*0.83/1.5 -> 7.055 | J4: C 12/15 | K4: =22000*((0.83*G4+8)/10)^0.3 -> 27266.58038 | L4: Feb32k | M4: =315/(1.15) -> 273.9130435 | N4: 3200
G5: 20 | H5: 2 | I5: 9.406666667 | J5: C 16/20 | K5: =22000*((0.83*G5+8)/10)^0.3 -> 28820.61294 | L5: Feb38k | M5: =375/(1.15) -> 326.0869565 | N5: 3800 | X5: dist | AA5: FC | AE5: Table 9.1
A6: Tabella 10.2 | G6: 25 | H6: 3 | I6: 11.75833333 | J6: C 20/25 | K6: 30200.49321 | L6: Feb44k | M6: =430/(1.15) -> 373.9130435 | N6: 4400 | S6: Sistema di rinforzo certificato | W6: 1 | X6: 1.2 | Z6: 1 | AA6: 1 | AB6: 2 | AE6: Exposure Conditions | AF6: Fiber Type | AG6: Envir. Red. Fact.
A7: x | B7: y | C7: l | G7: 30 | H7: 4 | I7: 14.11 | J7: C 25/30 | K7: 31447.16144 | L7: B 450C | M7: =450/1.15 -> 391.3043478 | N7: 4500 | S7: Sistema di rinforzo non certificato | W7: 2 | X7: 1.5 | Z7: 2 | AA7: 1.2 | AD7: 1 | AE7: A. Aggressivo | AF7: Basalto | AG7: 0.5
A8: 0.005 | B8: 0.37178 | C8: 0.34746 | G8: 35 | H8: 5 | I8: 16.46166667 | J8: C 28/35 | K8: 32588.10782 | L8: Da prove in situ | M8: =+'Flessione rettangolare'!C25/'Flessione rettangolare'!#REF! ->  | Z8: 3 | AA8: 1.35 | AD8: 2 | AF8: Carbonio | AG8: 0.85
A9: 0.01 | B9: 0.37178 | C9: 0.34746 | G9: 40 | H9: 6 | I9: 18.81333333 | J9: C 32/40 | K9: 33642.77768 | S9: Interna - Vetro\Epossidica | W9: 1 | X9: 0.75 | AD9: 3 | AF9: Vetro | AG9: 0.5
A10: 0.015 | B10: 0.37178 | C10: 0.34746 | G10: 45 | H10: 7 | I10: 21.165 | J10: C 35/45 | K10: 34625.48524 | S10: Interna - Arammidica\Epossidica | W10: 2 | X10: 0.85 | AA10: kq | AB10: 2 | AE10: Esterna | AF10: Basalto | AG10: 0.65
A11: 0.02 | B11: 0.37178 | C11: 0.34746 | G11: 50 | H11: 8 | I11: 23.51666667 | J11: C 40/50 | K11: 35547.10528 | S11: Interna - Carbonio\Epossidica | W11: 3 | X11: 0.95 | Z11: 1 | AA11: Carico distribuito | AC11: 1.25 | AF11: Carbonio | AG11: 0.85
A12: 0.025 | B12: 0.37178 | C12: 0.34746 | G12: 55 | H12: 9 | I12: 25.86833333 | J12: C 45/55 | K12: 36416.1139 | S12: Esterna - Vetro\Epossidica | W12: 4 | X12: 0.65 | Z12: 2 | AA12: Carico concentrato | AC12: 1 | AF12: Vetro | AG12: 0.65
A13: 0.03 | B13: 0.37178 | C13: 0.34746 | H13: 10 | I13: ='Flessione rettangolare'!C23/'Flessione rettangolare'!#REF! ->  | J13: Da prove in situ | K13: =22000*('Flessione rettangolare'!C23/10)^0.3 -> 30588.56175 | S13: Esterna - Arammidica\Epossidica | W13: 5 | X13: 0.75 | AE13: Interna | AF13: Basalto | AG13: 0.75
A14: 0.035 | B14: 0.37178 | C14: 0.34746 | S14: Esterna - Carbonio\Epossidica | W14: 6 | X14: 0.85 | AA14: KG | AF14: Carbonio | AG14: 0.95
A15: 0.04 | B15: 0.37178 | C15: 0.34746 | S15: A. Aggressivo - Vetro\Epossidica | W15: 7 | X15: 0.5 | AA15: Lamina | AB15: 0.023 | AF15: Vetro | AG15: 0.75
A16: 0.045 | B16: 0.37178 | C16: 0.34746 | E16: xbilanc | F16: ='Flessione rettangolare'!J76 -> 0.6338436926 | G16: yc/H | S16: A. Aggressivo - Arammidica\Epossidica | W16: 8 | X16: 0.7 | AA16: Tessuto | AB16: 0.037
A17: 0.05 | B17: 0.37178 | C17: 0.34746 | E17: yc | F17: ='Flessione rettangolare'!D11*F16 -> 633.8436926 | S17: A. Aggressivo - Carbonio\Epossidica | W17: 9 | X17: 0.85
A18: 0.055 | B18: 0.37178 | C18: 0.34746 | E18: xbilanc | F18: =F17/'Flessione rettangolare'!D16 -> 0.6467792781 | G18: yc/d | AD18: 1 | AE18: A. Aggressivo | AG18: =INDEX(AF7:AG9,MATCH('Flessione rettangolare'!D32,AF7:AF9,0),2) -> 0.85
A19: 0.06 | B19: 0.37178 | C19: 0.34746 | E19: yc | F19: ='Flessione rettangolare'!D16*F18 -> 633.8436926 | AD19: 2 | AE19: Esterna | AG19: =INDEX(AF10:AG12,MATCH('Flessione rettangolare'!D32,AF10:AF12,0),2) -> 0.85
A20: 0.065 | B20: 0.37178 | C20: 0.34746 | E20: Valori che si usano solo per la sezione in c.a. con lamina | AD20: 3 | AE20: Interna | AG20: =INDEX(AF13:AG15,MATCH('Flessione rettangolare'!D32,AF13:AF15,0),2) -> 0.95
A21: 0.07 | B21: 0.37178 | C21: 0.34746 | E21: per fissare la regione di rottura | R21: tessuti | S21: sigma | T21: E | U21: s | V21: eps | W21: larghezza | AB21: KG
A22: 0.075 | B22: 0.37178 | C22: 0.34746
A23: 0.08 | B23: 0.37178 | C23: 0.34746 | R23: =+R22+1 -> 1 | S23: 4840 | T23: 89000 | U23: 0.143 | V23: 0.0315 | X23: MapeWrap B UNI-AX 400 | AA23: Basalto | AB23: 0.037
A24: =AVERAGE(A23,A25) -> 0.085 | B24: =AVERAGE(B23,B25) -> 0.392385 | C24: =AVERAGE(C23,C25) -> 0.34862 | R24: 2 | S24: 4840 | T24: 89000 | U24: 0.218 | V24: 0.0315 | X24: MapeWrap B UNI-AX 600 | AA24: Basalto | AB24: 0.037
A25: 0.09 | B25: 0.41299 | C25: 0.34978 | R25: 3 | S25: 5340 | T25: 256000 | U25: 0.131 | V25: =+S25/T25 -> 0.020859375 | X25: MapeWrap C UNI-AX 240 - E 256 | AA25: Carbonio | AB25: 0.037
A26: =AVERAGE(A25,A27) -> 0.095 | B26: =AVERAGE(B25,B27) -> 0.43283 | C26: =AVERAGE(C25,C27) -> 0.351025 | R26: 4 | S26: 5340 | T26: 256000 | U26: 0.164 | V26: =+S26/T26 -> 0.020859375 | X26: MapeWrap C UNI-AX 300 - E 256 | AA26: Carbonio | AB26: 0.037
A27: 0.1 | B27: 0.45267 | C27: 0.35227 | R27: 5 | S27: 5340 | T27: 256000 | U27: 0.328 | V27: =+S27/T27 -> 0.020859375 | X27: MapeWrap C UNI-AX 600 - E 256 | AA27: Carbonio | AB27: 0.037
A28: =AVERAGE(A27,A29) -> 0.105 | B28: =AVERAGE(B27,B29) -> 0.471675 | C28: =AVERAGE(C27,C29) -> 0.35361 | R28: 6 | S28: 4830 | T28: 230000 | U28: 0.133 | V28: =+S28/T28 -> 0.021 | X28: MapeWrap C UNI-AX 240 - E 230 | AA28: Carbonio | AB28: 0.037
A29: 0.11 | B29: 0.49068 | C29: 0.35495 | R29: 7 | S29: 4830 | T29: 230000 | U29: 0.166 | V29: 0.021 | X29: MapeWrap C UNI-AX 300 - E 230 | AA29: Carbonio | AB29: 0.037
A30: =AVERAGE(A29,A31) -> 0.115 | B30: =AVERAGE(B29,B31) -> 0.50877 | C30: =AVERAGE(C29,C31) -> 0.356395 | R30: 8 | S30: 4830 | T30: 230000 | U30: 0.333 | V30: 0.021 | X30: MapeWrap C UNI-AX 600 - E 230 | AA30: Carbonio | AB30: 0.037
A31: 0.12 | B31: 0.52686 | C31: 0.35784 | R31: 9 | S31: 4410 | T31: 390000 | U31: 0.164 | V31: 0.01130769231 | X31: MapeWrap C UNI-AX HM 300 | AA31: Carbonio | AB31: 0.037
A32: =AVERAGE(A31,A33) -> 0.125 | B32: =AVERAGE(B31,B33) -> 0.54396 | C32: =AVERAGE(C31,C33) -> 0.359405 | R32: 10 | S32: 4410 | T32: 390000 | U32: 0.329 | V32: =+S32/T32 -> 0.01130769231 | X32: MapeWrap C UNI-AX HM 600 | AA32: Carbonio | AB32: 0.037
A33: 0.13 | B33: 0.56106 | C33: 0.36097 | R33: 11 | S33: 3100 | T33: 170000 | U33: 1.4 | V33: =+S33/T33 -> 0.01823529412 | X33: Carboplate E 170 | AA33: Carbonio | AB33: 0.023
A34: =AVERAGE(A33,A35) -> 0.135 | B34: =AVERAGE(B33,B35) -> 0.57709 | C34: =AVERAGE(C33,C35) -> 0.362665 | R34: 12 | S34: 3300 | T34: 200000 | U34: 1.4 | V34: =+S34/T34 -> 0.0165 | X34: Carboplate E 200 | AA34: Carbonio | AB34: 0.023
A35: 0.14 | B35: 0.59312 | C35: 0.36436 | R35: 13 | S35: 2500 | T35: 250000 | U35: 1.4 | V35: =+S35/T35 -> 0.01 | X35: Carboplate E 250 | AA35: Carbonio | AB35: 0.023
A36: =AVERAGE(A35,A37) -> 0.145 | B36: =AVERAGE(B35,B37) -> 0.60798 | C36: =AVERAGE(C35,C37) -> 0.36621 | R36: 14 | S36: 2560 | T36: 80000 | U36: 0.118 | V36: =S36/T36 -> 0.032 | X36: MapeWrap G UNI-AX 300 | AA36: Vetro | AB36: 0.037
A37: 0.15 | B37: 0.62284 | C37: 0.36806 | R37: 15 | S37: 2560 | T37: 80000 | U37: 0.354 | V37: =S37/T37 -> 0.032 | X37: MapeWrap G UNI-AX 900 | AA37: Vetro | AB37: 0.037
A38: =AVERAGE(A37,A39) -> 0.155 | B38: =AVERAGE(B37,B39) -> 0.63644 | C38: =AVERAGE(C37,C39) -> 0.370075 | R38: 16 | S38: 2700 | T38: 270000 | U38: 0.167 | V38: =+S38/T38 -> 0.01 | X38: Esempio CNR DT 200 R1/2013 | AA38: carbonio | AB38: 0.037
A39: 0.16 | B39: 0.65004 | C39: 0.37209
A40: =AVERAGE(A39,A41) -> 0.16335 | B40: =AVERAGE(B39,B41) -> 0.65839 | C40: =AVERAGE(C39,C41) -> 0.373555
A41: 0.1667 | B41: 0.66674 | C41: 0.37502
A42: =AVERAGE(A41,A43) -> 0.16835 | B42: =AVERAGE(B41,B43) -> 0.670625 | C42: =AVERAGE(C41,C43) -> 0.37577
A43: 0.17 | B43: 0.67451 | C43: 0.37652
A44: =AVERAGE(A43,A45) -> 0.175 | B44: =AVERAGE(B43,B45) -> 0.6854 | C44: =AVERAGE(C43,C45) -> 0.37889
A45: 0.18 | B45: 0.69629 | C45: 0.38126
A46: =AVERAGE(A45,A47) -> 0.185 | B46: =AVERAGE(B45,B47) -> 0.70604 | C46: =AVERAGE(C45,C47) -> 0.383685
A47: 0.19 | B47: 0.71579 | C47: 0.38611
A48: =AVERAGE(A47,A49) -> 0.195 | B48: =AVERAGE(B47,B49) -> 0.72456 | C48: =AVERAGE(C47,C49) -> 0.38851
A49: 0.2 | B49: 0.73333 | C49: 0.39091
A50: =AVERAGE(A49,A51) -> 0.205 | B50: =AVERAGE(B49,B51) -> 0.74127 | C50: =AVERAGE(C49,C51) -> 0.39325
A51: 0.21 | B51: 0.74921 | C51: 0.39559
A52: =AVERAGE(A51,A53) -> 0.215 | B52: =AVERAGE(B51,B53) -> 0.756425 | C52: =AVERAGE(C51,C53) -> 0.39785
A53: 0.22 | B53: 0.76364 | C53: 0.40011
A54: =AVERAGE(A53,A55) -> 0.225 | B54: =AVERAGE(B53,B55) -> 0.770225 | C54: =AVERAGE(C53,C55) -> 0.402275
A55: 0.23 | B55: 0.77681 | C55: 0.40444
A56: =AVERAGE(A55,A57) -> 0.235 | B56: =AVERAGE(B55,B57) -> 0.78285 | C56: =AVERAGE(C55,C57) -> 0.406505
A57: 0.24 | B57: 0.78889 | C57: 0.40857
A58: =AVERAGE(A57,A59) -> 0.245 | B58: =AVERAGE(B57,B59) -> 0.794445 | C58: =AVERAGE(C57,C59) -> 0.410535
A59: 0.25 | B59: 0.8 | C59: 0.4125
A60: =AVERAGE(A59,A61) -> 0.2545 | B60: =AVERAGE(B59,B61) -> 0.804635 | C60: =AVERAGE(C59,C61) -> 0.414185
A61: 0.259 | B61: 0.80927 | C61: 0.41587
A62: =AVERAGE(A61,A63) -> 0.25915 | B62: =AVERAGE(B61,B63) -> 0.8094 | C62: =AVERAGE(C61,C63) -> 0.415935
A63: 0.2593 | B63: 0.80953 | C63: 0.416

Sheet Sezione in C.A. (hidden)
A1: I. Calcolo del momento ultimo per sezione a T in C.A.+FRP
A2: Dati di input
A3: Dati Sezione | F3: Materiali | I3: Tensioni di calcolo | J3: Moduli elastici
I4: MPa | J4: MPa
A5: altezza H | C5: =+'Flessione rettangolare'!D11 -> 1000 | D5: mm | F5: cls classe | G5: 3 | I5: =+'Flessione rettangolare'!D23 -> 25
A6: copriferro d1=d2 | C6: =+'Flessione rettangolare'!D15 -> 20 | D6: mm | F6: acciaio | G6: 3 | I6: =+'Flessione rettangolare'!D25 -> 325.8333333 | J6: =+'Flessione rettangolare'!E25 -> 210000
A7: altezza utile d | C7: =C5-C6 -> 980 | D7: mm | F7: es,el | G7: =I6/J6 -> 0.001551587302
A8: Area di acciaio in trazione As | C8: ='Flessione rettangolare'!D13 -> 3000 | D8: mm2 | F8: per acciaio qualsiasi inserire il valore medio della resistenza cilindrica ottenute mediante prove in situ ridotto mediante opportuni coefficienti di confidenza secondo quanto indicato dal cap. 11 del O.P.C.M. 3431 | I8: 300 | J8: MPa
A10: Area di acciaio in compressione A's | C10: ='Flessione rettangolare'!D14 -> 100 | D10: mm2 | F10: per cls qualsiasi inserire il valore medio della resistenza cilindrica ottenute mediante prove in situ ridotto mediante opportuni coefficienti di confidenza secondo quanto indicato dal cap. 11 del O.P.C.M. 3431 | I10: 20 | J10: MPa
A12: Base B | C12: =+'Flessione rettangolare'!D12 -> 400 | D12: mm
A19: Posto:
A20: yc = profondità dell'asse neutro
A21: yel = la profondità dell'asse neutro in corrispondenza del cls allo 0,35% e dell'acciaio al limite elastico
B22: yc,bil = | C22: =G23*C7 -> 50.0729927 | D22: mm | F22: xbilanc=0.0035/(0.0035+esy)
F23: xbilanc = yc,bilanc /d = | G23: =0.0035/(0.0035+0.065) -> 0.05109489051
A24: yc,bilanc = | B24: la profondità dell'asse neutro per rottura bilanciata
A25: yc,el = | B25: =0.0035/(0.0035+G7)*C7 -> 678.9945012 | C25: mm
A27: Regioni di Rottura
A28: Regione 1 | B28: yc < yc,bilan | C28: deformazione cls | E28: < 0.0035 | G28: =IF(A41>C13,1,2) -> 1
C29: deformazione lamina = | F29: =0.01 -> 0.01
A30: Regione 2 | B30: yc > yc,bilan | C30: deformazione cls = | E30: =0.0035 -> 0.0035
B31: yc < yc,el | C31: deformazione acciaio compresa tra es,el e 0.01
A32: Regione 3 | B32: yc > yc,el | C32: deformazione cls = | E32: =0.0035 -> 0.0035
B33: yc < d | C33: acciaio elastico
A36: Output: calcolo dell'asse neutro a rottura e del momento ultimo (yc, Mu)
A37: E' una procedura iterativa in cui si ipotizza un valore per yc e si verifica che corrisponda Nu=0 (rottura in flessione semplice)
A38: IPOTESI 1: l'ASSE NEUTRO TAGLIA LA SOLETTA
A39: yc | B39: regione | C39: y | D39: l | E39: s's | F39: ss | G39: Premere CTRL+r per imporre N=0 e ricavare yc e Mu | I39: eq. Traslazione | J39: Mu
A40: [mm] | C40: ad. | D40: ad. | E40: MPa | F40: MPa | J40: [kN m]
A41: 118.1145833 | B41: =IF($A$41<$C$22,1,IF($A$41<$B$25,2,3)) -> 2 | C41: 0.8 | D41: 0.416 | E41: =+IF(ABS(I44)>G7,I6,I44*J6) -> 325.8333333 | F41: =IF(OR($B$41=1,$B$41=2),$I$6,$J$6*(0.0035/$A$41*($C$7-$A$41))) -> 325.8333333 | I41: =$C$41*$C$12*$A$41*$I$5+$C$10*$E$41-$C$8*$F$41 -> 0 | J41: =($C$41*$C$12*$A$41*$I$5*($C$7-$D$41*$A$41)+$C$10*$E$41*($C$7-$C$6))/1000000 -> 910.869223
A42: x = yc/H | E42: =+IF(ABS(I44)>G7,I6,I44*J6) -> 325.8333333 | H42: zona 1 | I42: zona 2
A43: =$A$41/$C$5 -> 0.1181145833 | G43: eps cls | H43: =+H45/(C7-A41)*(A41) -> 0.001370420952 | I43: 0.0035
G44: eps acciaio comp. | H44: =+H45/(C7-A41)*(A41-C6) -> 0.001138371545 | I44: =0.0035*($A$41-C6)/$A$41 -> 0.002907355146
G45: eps acciaio teso | H45: 0.01 | I45: =0.0035*($C$7-$A$41)/$A$41 -> 0.02553959785
A57: L'ipotesi che l'asse neutro taglia la soletta è corretta: ipotesi 1 ok!
